[Event "Titled Tuesday Blitz May 03 Early 2022"]
[White "Pranav, V"]
[Black "Samadov, Read"]
[WhiteFideId "25060783"]
[BlackFideId "13417444"]
[WhiteElo "2349"]
[BlackElo "2084"]
[Result "1/2-1/2"]
[Round "03"]
[TimeControl "180+1"]
[Date "2022.05.03"]
[WhiteClock "0:00:10"]
[BlackClock "0:00:06"]

1. Nf3 {[%clk 0:03:00]}  Nf6 {[%clk 0:02:56]} 2. g3 {[%clk 0:03:01]}  d5 {[%clk 0:02:55]} 3. Bg2 {[%clk 0:03:01]}  c6 {[%clk 0:02:56]} 4. O-O {[%clk 0:03:01]}  Bg4 {[%clk 0:02:56]} 5. d3 {[%clk 0:03:02]}  Nbd7 {[%clk 0:02:56]} 6. Nbd2 {[%clk 0:03:02]}  e5 {[%clk 0:02:51]} 7. e4 {[%clk 0:03:02]}  dxe4 {[%clk 0:02:51]} 8. dxe4 {[%clk 0:03:02]}  Bc5 {[%clk 0:02:51]} 9. h3 {[%clk 0:03:01]}  Bxf3 {[%clk 0:02:49]} 10. Qxf3 {[%clk 0:03:00]}  O-O {[%clk 0:02:50]} 11. a4 {[%clk 0:02:59]}  a5 {[%clk 0:02:50]} 12. Nc4 {[%clk 0:02:58]}  b5 {[%clk 0:02:47]} 13. Ne3 {[%clk 0:02:55]}  g6 {[%clk 0:02:31]} 14. Rd1 {[%clk 0:02:53]}  Qb6 {[%clk 0:02:27]} 15. Bd2 {[%clk 0:02:40]}  Kg7 {[%clk 0:02:21]} 16. b3 {[%clk 0:02:28]}  Rfd8 {[%clk 0:02:19]} 17. h4 {[%clk 0:02:22]}  h5 {[%clk 0:02:19]} 18. Bh3 {[%clk 0:02:21]}  Nf8 {[%clk 0:02:10]} 19. axb5 {[%clk 0:02:18]}  cxb5 {[%clk 0:02:09]} 20. Bc3 {[%clk 0:02:06]}  Bd4 {[%clk 0:02:04]} 21. Bxd4 {[%clk 0:01:57]}  Rxd4 {[%clk 0:01:57]} 22. Rxd4 {[%clk 0:01:54]}  Qxd4 {[%clk 0:01:55]} 23. Rd1 {[%clk 0:01:53]}  Qc5 {[%clk 0:01:46]} 24. Ra1 {[%clk 0:01:30]}  a4 {[%clk 0:01:46]} 25. b4 {[%clk 0:01:30]}  Qd4 {[%clk 0:01:33]} 26. c3 {[%clk 0:01:25]}  Qxe4 {[%clk 0:01:19]} 27. Qe2 {[%clk 0:01:25]}  Qc6 {[%clk 0:01:17]} 28. c4 {[%clk 0:01:10]}  bxc4 {[%clk 0:01:17]} 29. Nxc4 {[%clk 0:01:11]}  Qb5 {[%clk 0:01:11]} 30. Bf1 {[%clk 0:01:11]}  Qxb4 {[%clk 0:01:10]} 31. Qxe5 {[%clk 0:01:10]}  Nd7 {[%clk 0:01:09]} 32. Qf4 {[%clk 0:01:04]}  a3 {[%clk 0:01:04]} 33. Qf3 {[%clk 0:01:00]}  Rc8 {[%clk 0:00:52]} 34. Qxa3 {[%clk 0:00:30]}  Rxc4 {[%clk 0:00:51]} 35. Bxc4 {[%clk 0:00:31]}  Qxc4 {[%clk 0:00:52]} 36. Re1 {[%clk 0:00:31]}  Nb6 {[%clk 0:00:50]} 37. Qd6 {[%clk 0:00:31]}  Nbd5 {[%clk 0:00:48]} 38. Qe5 {[%clk 0:00:31]}  Kg8 {[%clk 0:00:43]} 39. Qb8+ {[%clk 0:00:31]}  Kg7 {[%clk 0:00:43]} 40. Qe5 {[%clk 0:00:31]}  Qc6 {[%clk 0:00:38]} 41. Rd1 {[%clk 0:00:30]}  Kg8 {[%clk 0:00:32]} 42. Qb8+ {[%clk 0:00:30]}  Kh7 {[%clk 0:00:32]} 43. Qf8 {[%clk 0:00:29]}  Qe6 {[%clk 0:00:32]} 44. Qc5 {[%clk 0:00:29]}  Kg7 {[%clk 0:00:30]} 45. Qd4 {[%clk 0:00:28]}  Ne7 {[%clk 0:00:30]} 46. Qc3 {[%clk 0:00:27]}  Nf5 {[%clk 0:00:29]} 47. Qb4 {[%clk 0:00:26]}  Nd5 {[%clk 0:00:20]} 48. Qb2+ {[%clk 0:00:24]}  Nf6 {[%clk 0:00:18]} 49. Qb4 {[%clk 0:00:24]}  Ne7 {[%clk 0:00:14]} 50. Re1 {[%clk 0:00:22]}  Ned5 {[%clk 0:00:12]} 51. Qd2 {[%clk 0:00:21]}  Qf5 {[%clk 0:00:12]} 52. Qd4 {[%clk 0:00:21]}  Qf3 {[%clk 0:00:11]} 53. Re5 {[%clk 0:00:16]}  Nc3 {[%clk 0:00:09]} 54. Qe3 {[%clk 0:00:03]}  Qd1+ {[%clk 0:00:06]} 55. Qe1 {[%clk 0:00:03]}  Qxe1+ {[%clk 0:00:03]} 56. Rxe1 {[%clk 0:00:03]}  Ncd5 {[%clk 0:00:04]} 57. Kg2 {[%clk 0:00:04]}  Nc7 {[%clk 0:00:04]} 58. Ra1 {[%clk 0:00:04]}  Ne6 {[%clk 0:00:05]} 59. Ra6 {[%clk 0:00:05]}  Nd5 {[%clk 0:00:05]} 60. Ra7 {[%clk 0:00:05]}  Kf6 {[%clk 0:00:05]} 61. Ra6 {[%clk 0:00:06]}  Ne7 {[%clk 0:00:06]} 62. Ra7 {[%clk 0:00:06]}  Nf5 {[%clk 0:00:06]} 63. Kf3 {[%clk 0:00:06]}  Nfd4+ {[%clk 0:00:06]} 64. Kg2 {[%clk 0:00:06]}  Nb5 {[%clk 0:00:07]} 65. Ra8 {[%clk 0:00:07]}  Nd6 {[%clk 0:00:06]} 66. Ra6 {[%clk 0:00:07]}  Ke5 {[%clk 0:00:06]} 67. Kf3 {[%clk 0:00:06]}  Nd4+ {[%clk 0:00:06]} 68. Kg2 {[%clk 0:00:07]}  N6f5 {[%clk 0:00:06]} 69. Ra7 {[%clk 0:00:07]}  Kf6 {[%clk 0:00:06]} 70. Ra6+ {[%clk 0:00:08]}  Ne6 {[%clk 0:00:06]} 71. Ra7 {[%clk 0:00:08]}  Nd6 {[%clk 0:00:05]} 72. Rd7 {[%clk 0:00:09]}  Ne8 {[%clk 0:00:05]} 73. Ra7 {[%clk 0:00:09]}  Kg7 {[%clk 0:00:05]} 74. Rd7 {[%clk 0:00:09]}  Nf6 {[%clk 0:00:04]} 75. Ra7 {[%clk 0:00:10]}  Ng4 {[%clk 0:00:04]} 76. Kf3 {[%clk 0:00:10]}  Nd4+ {[%clk 0:00:04]} 77. Kg2 {[%clk 0:00:10]}  Nf5 {[%clk 0:00:05]} 78. Rb7 {[%clk 0:00:09]}  Nf6 {[%clk 0:00:05]} 79. Ra7 {[%clk 0:00:09]}  Nd6 {[%clk 0:00:05]} 80. Re7 {[%clk 0:00:08]}  Nfe4 {[%clk 0:00:04]} 81. Rd7 {[%clk 0:00:08]}  Nf5 {[%clk 0:00:05]} 82. Rd5 {[%clk 0:00:07]}  Nf6 {[%clk 0:00:05]} 83. Re5 {[%clk 0:00:06]}  Nd6 {[%clk 0:00:04]} 84. Re7 {[%clk 0:00:06]}  Kf8 {[%clk 0:00:04]} 85. Re5 {[%clk 0:00:06]}  Nd7 {[%clk 0:00:04]} 86. Rd5 {[%clk 0:00:06]}  Ke7 {[%clk 0:00:04]} 87. Rd1 {[%clk 0:00:07]}  Nf6 {[%clk 0:00:05]} 88. Re1+ {[%clk 0:00:07]}  Kd7 {[%clk 0:00:05]} 89. Ra1 {[%clk 0:00:08]}  Nd5 {[%clk 0:00:05]} 90. Rd1 {[%clk 0:00:08]}  Ke6 {[%clk 0:00:05]} 91. Re1+ {[%clk 0:00:08]}  Kf6 {[%clk 0:00:05]} 92. Rd1 {[%clk 0:00:09]}  Ke5 {[%clk 0:00:06]} 93. Re1+ {[%clk 0:00:09]}  Kf6 {[%clk 0:00:06]} 94. Rd1 {[%clk 0:00:10]}  Ke6 {[%clk 0:00:06]} 95. Re1+ {[%clk 0:00:10]}  Kf6 {[%clk 0:00:06]} 1/2-1/2


[Site "https://www.chess.com"]

[Event "Titled Tuesday Blitz May 03 Early 2022"]
[White "Preotu, Razvan"]
[Black "Svane, Rasmus"]
[WhiteFideId "2613280"]
[BlackFideId "4657101"]
[WhiteElo "2407"]
[BlackElo "2645"]
[Result "0-1"]
[Round "03"]
[TimeControl "180+1"]
[Date "2022.05.03"]
[WhiteClock "0:00:05"]
[BlackClock "0:00:12"]

1. e4 {[%clk 0:03:00]}  c6 {[%clk 0:03:00]} 2. Nc3 {[%clk 0:03:00]}  d5 {[%clk 0:03:01]} 3. Nf3 {[%clk 0:03:01]}  dxe4 {[%clk 0:03:01]} 4. Nxe4 {[%clk 0:03:01]}  Nf6 {[%clk 0:03:01]} 5. Qe2 {[%clk 0:03:01]}  Nxe4 {[%clk 0:03:02]} 6. Qxe4 {[%clk 0:03:02]}  Qa5 {[%clk 0:03:03]} 7. b4 {[%clk 0:03:01]}  Qd5 {[%clk 0:02:58]} 8. Qe3 {[%clk 0:02:46]}  Bf5 {[%clk 0:02:58]} 9. c4 {[%clk 0:02:44]}  Qe4 {[%clk 0:02:58]} 10. Bb2 {[%clk 0:02:27]}  e6 {[%clk 0:02:57]} 11. a3 {[%clk 0:02:17]}  a5 {[%clk 0:02:58]} 12. b5 {[%clk 0:02:11]}  cxb5 {[%clk 0:02:58]} 13. cxb5 {[%clk 0:02:11]}  Nd7 {[%clk 0:02:56]} 14. Be2 {[%clk 0:02:10]}  Bc5 {[%clk 0:02:43]} 15. d4 {[%clk 0:01:45]}  Bd6 {[%clk 0:02:42]} 16. Nd2 {[%clk 0:01:45]}  Qxe3 {[%clk 0:02:21]} 17. fxe3 {[%clk 0:01:46]}  Nb6 {[%clk 0:02:18]} 18. Nc4 {[%clk 0:00:58]}  Nxc4 {[%clk 0:02:16]} 19. Bxc4 {[%clk 0:00:59]}  Ke7 {[%clk 0:02:17]} 20. Rc1 {[%clk 0:00:58]}  Rhc8 {[%clk 0:02:03]} 21. Kf2 {[%clk 0:00:54]}  h5 {[%clk 0:01:46]} 22. Be2 {[%clk 0:00:53]}  h4 {[%clk 0:01:45]} 23. Bf3 {[%clk 0:00:52]}  Rab8 {[%clk 0:01:31]} 24. e4 {[%clk 0:00:52]}  Bg6 {[%clk 0:01:10]} 25. e5 {[%clk 0:00:52]}  Bc7 {[%clk 0:01:11]} 26. a4 {[%clk 0:00:52]}  f6 {[%clk 0:00:58]} 27. Ke2 {[%clk 0:00:28]}  fxe5 {[%clk 0:00:57]} 28. dxe5 {[%clk 0:00:29]}  Bf5 {[%clk 0:00:42]} 29. Bd4 {[%clk 0:00:23]}  Bd8 {[%clk 0:00:30]} 30. Ba7 {[%clk 0:00:22]}  Ra8 {[%clk 0:00:26]} 31. Bc5+ {[%clk 0:00:21]}  Rxc5 {[%clk 0:00:18]} 32. Rxc5 {[%clk 0:00:22]}  Bb6 {[%clk 0:00:18]} 33. Rhc1 {[%clk 0:00:17]}  Bxc5 {[%clk 0:00:18]} 34. Rxc5 {[%clk 0:00:18]}  Rd8 {[%clk 0:00:15]} 35. Rc7+ {[%clk 0:00:17]}  Rd7 {[%clk 0:00:15]} 36. b6 {[%clk 0:00:11]}  Rxc7 {[%clk 0:00:14]} 37. bxc7 {[%clk 0:00:12]}  Kd7 {[%clk 0:00:14]} 38. Bxb7 {[%clk 0:00:12]}  Kxc7 {[%clk 0:00:15]} 39. Ba6 {[%clk 0:00:12]}  Kb6 {[%clk 0:00:14]} 40. Bb5 {[%clk 0:00:13]}  Kc5 {[%clk 0:00:15]} 41. Ke3 {[%clk 0:00:13]}  g5 {[%clk 0:00:15]} 42. g3 {[%clk 0:00:07]}  hxg3 {[%clk 0:00:15]} 43. hxg3 {[%clk 0:00:07]}  Kd5 {[%clk 0:00:16]} 44. Be8 {[%clk 0:00:06]}  Kxe5 {[%clk 0:00:17]} 45. Bb5 {[%clk 0:00:07]}  Bc2 {[%clk 0:00:16]} 46. Be8 {[%clk 0:00:07]}  Bb3 {[%clk 0:00:16]} 47. Bb5 {[%clk 0:00:07]}  Kf5 {[%clk 0:00:16]} 48. Bd7 {[%clk 0:00:06]}  Kg4 {[%clk 0:00:16]} 49. Kf2 {[%clk 0:00:06]}  Bc4 {[%clk 0:00:12]} 50. Be8 {[%clk 0:00:07]}  Kf5 {[%clk 0:00:11]} 51. Ke3 {[%clk 0:00:07]}  Ke5 {[%clk 0:00:11]} 52. Bd7 {[%clk 0:00:07]}  Kd5 {[%clk 0:00:11]} 53. Be8 {[%clk 0:00:07]}  Kc5 {[%clk 0:00:12]} 54. Ke4 {[%clk 0:00:07]}  Kb4 {[%clk 0:00:12]} 55. Ke5 {[%clk 0:00:05]}  Bb3 {[%clk 0:00:12]} 56. Kf6 {[%clk 0:00:04]}  Bxa4 {[%clk 0:00:11]} 57. Bf7 {[%clk 0:00:05]}  Bb3 {[%clk 0:00:11]} 58. Kxg5 {[%clk 0:00:05]}  a4 {[%clk 0:00:12]} 0-1


[Site "https://www.chess.com"]

[Event "Titled Tuesday Blitz May 03 Early 2022"]
[White "Ratnakaran, K."]
[Black "Peterson, Eric"]
[WhiteFideId "5005507"]
[BlackFideId "14908395"]
[WhiteElo "2407"]
[BlackElo "2195"]
[Result "1-0"]
[Round "03"]
[TimeControl "180+1"]
[Date "2022.05.03"]
[WhiteClock "0:01:37"]
[BlackClock "0:00:01"]

1. e4 {[%clk 0:03:00]}  e6 {[%clk 0:02:59]} 2. d4 {[%clk 0:03:00]}  d5 {[%clk 0:02:59]} 3. e5 {[%clk 0:03:00]}  c5 {[%clk 0:02:59]} 4. c3 {[%clk 0:03:01]}  Nc6 {[%clk 0:02:59]} 5. Nf3 {[%clk 0:03:01]}  Qb6 {[%clk 0:02:59]} 6. Bd3 {[%clk 0:03:01]}  cxd4 {[%clk 0:02:59]} 7. cxd4 {[%clk 0:03:01]}  Bd7 {[%clk 0:03:00]} 8. O-O {[%clk 0:03:01]}  Nxd4 {[%clk 0:03:01]} 9. Nxd4 {[%clk 0:03:01]}  Qxd4 {[%clk 0:03:02]} 10. Nc3 {[%clk 0:03:01]}  Qxe5 {[%clk 0:03:02]} 11. Re1 {[%clk 0:03:00]}  Qd6 {[%clk 0:03:03]} 12. Qf3 {[%clk 0:02:56]}  Bc6 {[%clk 0:03:03]} 13. Bf4 {[%clk 0:02:56]}  Qd7 {[%clk 0:03:03]} 14. Qg3 {[%clk 0:02:54]}  Nf6 {[%clk 0:03:01]} 15. Be5 {[%clk 0:02:54]}  Be7 {[%clk 0:02:44]} 16. Rad1 {[%clk 0:02:45]}  O-O {[%clk 0:02:34]} 17. Bb1 {[%clk 0:02:42]}  Rfd8 {[%clk 0:02:22]} 18. Rd4 {[%clk 0:02:38]}  Bd6 {[%clk 0:02:12]} 19. Bxh7+ {[%clk 0:02:36]}  Kf8 {[%clk 0:01:53]} 20. Bb1 {[%clk 0:02:35]}  Bxe5 {[%clk 0:01:52]} 21. Rxe5 {[%clk 0:02:35]}  Qd6 {[%clk 0:01:41]} 22. Rh4 {[%clk 0:02:25]}  Nd7 {[%clk 0:01:27]} 23. Qg5 {[%clk 0:02:11]}  Nf6 {[%clk 0:00:08]} 24. Re1 {[%clk 0:02:00]}  d4 {[%clk 0:00:06]} 25. Ne4 {[%clk 0:01:58]}  Bxe4 {[%clk 0:00:05]} 26. Bxe4 {[%clk 0:01:57]}  Ke7 {[%clk 0:00:04]} 27. Bxb7 {[%clk 0:01:47]}  Rh8 {[%clk 0:00:03]} 28. Bxa8 {[%clk 0:01:47]}  Rxa8 {[%clk 0:00:03]} 29. Qxg7 {[%clk 0:01:46]}  Rg8 {[%clk 0:00:03]} 30. Qh6 {[%clk 0:01:46]}  Qd5 {[%clk 0:00:03]} 31. g3 {[%clk 0:01:44]}  d3 {[%clk 0:00:03]} 32. Qe3 {[%clk 0:01:40]}  Rg6 {[%clk 0:00:03]} 33. Rd4 {[%clk 0:01:39]}  Qf5 {[%clk 0:00:01]} 34. Qxd3 {[%clk 0:01:37]} 1-0


[Site "https://www.chess.com"]

[Event "Titled Tuesday Blitz May 03 Early 2022"]
[White "Rengifo Blancas, Renzo Jhonathan"]
[Black "Aung Thant Zin"]
[WhiteFideId "3807185"]
[BlackFideId "13000063"]
[WhiteElo "2058"]
[BlackElo "2278"]
[Result "0-1"]
[Round "03"]
[TimeControl "180+1"]
[Date "2022.05.03"]
[WhiteClock "0:00:14"]
[BlackClock "0:01:22"]

1. e4 {[%clk 0:03:00]}  c5 {[%clk 0:02:59]} 2. d4 {[%clk 0:03:00]}  cxd4 {[%clk 0:02:57]} 3. c3 {[%clk 0:03:00]}  dxc3 {[%clk 0:02:57]} 4. Nxc3 {[%clk 0:03:01]}  e6 {[%clk 0:02:58]} 5. Nf3 {[%clk 0:02:58]}  Nc6 {[%clk 0:02:59]} 6. Bc4 {[%clk 0:02:59]}  a6 {[%clk 0:02:59]} 7. O-O {[%clk 0:02:59]}  d6 {[%clk 0:02:59]} 8. Qe2 {[%clk 0:02:59]}  Be7 {[%clk 0:02:59]} 9. Rd1 {[%clk 0:02:59]}  Qc7 {[%clk 0:02:58]} 10. Bf4 {[%clk 0:02:59]}  Ne5 {[%clk 0:02:57]} 11. Bb3 {[%clk 0:02:57]}  Nf6 {[%clk 0:02:56]} 12. Rac1 {[%clk 0:02:58]}  Qb8 {[%clk 0:02:55]} 13. a4 {[%clk 0:02:07]}  O-O {[%clk 0:02:51]} 14. h3 {[%clk 0:02:06]}  Bd7 {[%clk 0:02:49]} 15. Bh2 {[%clk 0:02:04]}  Bc6 {[%clk 0:02:47]} 16. Nd4 {[%clk 0:02:03]}  Bd7 {[%clk 0:02:25]} 17. f4 {[%clk 0:01:58]}  Nc6 {[%clk 0:02:24]} 18. Kh1 {[%clk 0:01:41]}  Nxd4 {[%clk 0:02:14]} 19. Rxd4 {[%clk 0:01:40]}  Rd8 {[%clk 0:02:15]} 20. e5 {[%clk 0:01:38]}  Ne8 {[%clk 0:02:13]} 21. exd6 {[%clk 0:01:25]}  Nxd6 {[%clk 0:02:01]} 22. Rcd1 {[%clk 0:01:26]}  Bc6 {[%clk 0:02:00]} 23. f5 {[%clk 0:01:21]}  Nxf5 {[%clk 0:01:55]} 24. Bxb8 {[%clk 0:00:47]}  Rxd4 {[%clk 0:01:50]} 25. Be5 {[%clk 0:00:44]}  Rad8 {[%clk 0:01:38]} 26. Rxd4 {[%clk 0:00:36]}  Rxd4 {[%clk 0:01:37]} 27. Bxd4 {[%clk 0:00:32]}  Ng3+ {[%clk 0:01:37]} 28. Kg1 {[%clk 0:00:31]}  Nxe2+ {[%clk 0:01:38]} 29. Nxe2 {[%clk 0:00:32]}  Kf8 {[%clk 0:01:33]} 30. Bc3 {[%clk 0:00:32]}  Bd6 {[%clk 0:01:27]} 31. Kf2 {[%clk 0:00:32]}  Ke7 {[%clk 0:01:26]} 32. Nd4 {[%clk 0:00:31]}  Bd7 {[%clk 0:01:25]} 33. Nf3 {[%clk 0:00:30]}  f6 {[%clk 0:01:24]} 34. Bc2 {[%clk 0:00:19]}  h6 {[%clk 0:01:23]} 35. b3 {[%clk 0:00:14]}  e5 {[%clk 0:01:22]} 0-1


[Site "https://www.chess.com"]

[Event "Titled Tuesday Blitz May 03 Early 2022"]
[White "Richter, Nils"]
[Black "Stanisz, Patryk"]
[WhiteFideId "12990809"]
[BlackFideId "1123106"]
[WhiteElo "2243"]
[BlackElo "1833"]
[Result "1-0"]
[Round "03"]
[TimeControl "180+1"]
[Date "2022.05.03"]
[WhiteClock "0:01:54"]
[BlackClock "0:00:01"]

1. e4 {[%clk 0:03:00]}  c5 {[%clk 0:02:58]} 2. Nf3 {[%clk 0:03:00]}  Nc6 {[%clk 0:02:58]} 3. d4 {[%clk 0:03:01]}  cxd4 {[%clk 0:02:59]} 4. Nxd4 {[%clk 0:03:02]}  Nf6 {[%clk 0:02:59]} 5. Nc3 {[%clk 0:03:02]}  e5 {[%clk 0:02:58]} 6. Ndb5 {[%clk 0:03:01]}  d6 {[%clk 0:02:58]} 7. Bg5 {[%clk 0:03:00]}  a6 {[%clk 0:02:58]} 8. Na3 {[%clk 0:03:00]}  b5 {[%clk 0:02:58]} 9. Nd5 {[%clk 0:03:00]}  Qa5+ {[%clk 0:02:58]} 10. Bd2 {[%clk 0:02:59]}  Qd8 {[%clk 0:02:58]} 11. Bg5 {[%clk 0:02:59]}  Be7 {[%clk 0:02:58]} 12. Bxf6 {[%clk 0:02:59]}  Bxf6 {[%clk 0:02:59]} 13. c4 {[%clk 0:02:59]}  O-O {[%clk 0:02:55]} 14. cxb5 {[%clk 0:02:54]}  Nd4 {[%clk 0:02:56]} 15. Bd3 {[%clk 0:02:50]}  Bg5 {[%clk 0:02:55]} 16. O-O {[%clk 0:02:50]}  Be6 {[%clk 0:02:47]} 17. bxa6 {[%clk 0:02:42]}  f5 {[%clk 0:02:31]} 18. Nc2 {[%clk 0:02:40]}  Nxc2 {[%clk 0:02:29]} 19. Bxc2 {[%clk 0:02:39]}  Rxa6 {[%clk 0:02:24]} 20. exf5 {[%clk 0:02:37]}  Bf7 {[%clk 0:01:58]} 21. Bb3 {[%clk 0:02:37]}  Ra5 {[%clk 0:01:46]} 22. f4 {[%clk 0:02:28]}  exf4 {[%clk 0:01:41]} 23. Nxf4 {[%clk 0:02:26]}  Rxf5 {[%clk 0:01:31]} 24. Ne6 {[%clk 0:02:22]}  Qb6+ {[%clk 0:01:11]} 25. Kh1 {[%clk 0:02:22]}  Rxf1+ {[%clk 0:00:47]} 26. Qxf1 {[%clk 0:02:21]}  Bf6 {[%clk 0:00:14]} 27. Nxf8 {[%clk 0:02:15]}  Kxf8 {[%clk 0:00:14]} 28. Bxf7 {[%clk 0:02:13]}  Kxf7 {[%clk 0:00:13]} 29. Qc4+ {[%clk 0:02:12]}  Kf8 {[%clk 0:00:09]} 30. Re1 {[%clk 0:02:07]}  Qa5 {[%clk 0:00:04]} 31. Qc8+ {[%clk 0:02:05]}  Bd8 {[%clk 0:00:04]} 32. b4 {[%clk 0:02:00]}  Qb6 {[%clk 0:00:02]} 33. Qe6 {[%clk 0:01:55]}  Qc7 {[%clk 0:00:01]} 34. Qe8# {[%clk 0:01:54]} 1-0


[Site "https://www.chess.com"]

[Event "Titled Tuesday Blitz May 03 Early 2022"]
[White "Ronka, Erik"]
[Black "Cramling Bellon, Anna"]
[WhiteFideId "505080"]
[BlackFideId "32009232"]
[WhiteElo "2264"]
[BlackElo "1905"]
[Result "1-0"]
[Round "03"]
[TimeControl "180+1"]
[Date "2022.05.03"]
[WhiteClock "0:00:40"]
[BlackClock "0:00:01"]

1. e4 {[%clk 0:03:00]}  c5 {[%clk 0:02:59]} 2. a3 {[%clk 0:02:58]}  Nc6 {[%clk 0:02:56]} 3. b4 {[%clk 0:02:59]}  cxb4 {[%clk 0:02:56]} 4. axb4 {[%clk 0:02:59]}  Nxb4 {[%clk 0:02:56]} 5. d4 {[%clk 0:02:59]}  d5 {[%clk 0:02:56]} 6. c3 {[%clk 0:02:58]}  Nc6 {[%clk 0:02:52]} 7. exd5 {[%clk 0:02:59]}  Qxd5 {[%clk 0:02:50]} 8. Na3 {[%clk 0:03:00]}  e6 {[%clk 0:02:36]} 9. Nb5 {[%clk 0:02:58]}  Bd6 {[%clk 0:02:28]} 10. Bc4 {[%clk 0:02:44]}  Qe4+ {[%clk 0:02:20]} 11. Ne2 {[%clk 0:02:36]}  Bb8 {[%clk 0:02:16]} 12. O-O {[%clk 0:02:26]}  Nf6 {[%clk 0:02:14]} 13. Ng3 {[%clk 0:02:15]}  Bxg3 {[%clk 0:01:38]} 14. fxg3 {[%clk 0:02:14]}  O-O {[%clk 0:01:36]} 15. Bg5 {[%clk 0:01:59]}  Nd5 {[%clk 0:01:28]} 16. Bd3 {[%clk 0:01:54]}  Nxc3 {[%clk 0:00:50]} 17. Bxe4 {[%clk 0:01:38]}  Nxd1 {[%clk 0:00:48]} 18. Rfxd1 {[%clk 0:01:37]}  Bd7 {[%clk 0:00:38]} 19. Nd6 {[%clk 0:01:28]}  h6 {[%clk 0:00:19]} 20. Be3 {[%clk 0:01:15]}  Rab8 {[%clk 0:00:18]} 21. d5 {[%clk 0:01:03]}  Ne5 {[%clk 0:00:10]} 22. Bf4 {[%clk 0:00:58]}  f6 {[%clk 0:00:08]} 23. Rxa7 {[%clk 0:00:45]}  Kh8 {[%clk 0:00:02]} 24. Rxb7 {[%clk 0:00:43]}  Rxb7 {[%clk 0:00:03]} 25. Nxb7 {[%clk 0:00:44]}  Bb5 {[%clk 0:00:02]} 26. dxe6 {[%clk 0:00:42]}  Rb8 {[%clk 0:00:02]} 27. Nd6 {[%clk 0:00:41]}  Rd8 {[%clk 0:00:01]} 28. Bxe5 {[%clk 0:00:39]}  fxe5 {[%clk 0:00:01]} 29. Nf7+ {[%clk 0:00:40]}  Kg8 {[%clk 0:00:01]} 30. Rxd8+ {[%clk 0:00:40]} 1-0


[Site "https://www.chess.com"]

[Event "Titled Tuesday Blitz May 03 Early 2022"]
[White "Saldano Dayer, Horacio"]
[Black "Wagh Suyog"]
[WhiteFideId "103411"]
[BlackFideId "25071688"]
[WhiteElo "2419"]
[BlackElo "2181"]
[Result "0-1"]
[Round "03"]
[TimeControl "180+1"]
[Date "2022.05.03"]
[WhiteClock "0:00:04"]
[BlackClock "0:00:21"]

1. d4 {[%clk 0:03:00]}  Nf6 {[%clk 0:02:56]} 2. Bg5 {[%clk 0:03:00]}  e6 {[%clk 0:02:48]} 3. e3 {[%clk 0:02:58]}  b6 {[%clk 0:02:47]} 4. Nd2 {[%clk 0:02:56]}  Bb7 {[%clk 0:02:47]} 5. Ngf3 {[%clk 0:02:55]}  h6 {[%clk 0:02:44]} 6. Bxf6 {[%clk 0:02:48]}  Qxf6 {[%clk 0:02:43]} 7. Bd3 {[%clk 0:02:49]}  Qd8 {[%clk 0:02:40]} 8. Qe2 {[%clk 0:02:48]}  Be7 {[%clk 0:02:39]} 9. c3 {[%clk 0:02:47]}  O-O {[%clk 0:02:36]} 10. h4 {[%clk 0:02:43]}  c5 {[%clk 0:02:35]} 11. g4 {[%clk 0:02:40]}  Nc6 {[%clk 0:02:22]} 12. g5 {[%clk 0:02:38]}  h5 {[%clk 0:02:22]} 13. g6 {[%clk 0:02:28]}  fxg6 {[%clk 0:02:13]} 14. Rg1 {[%clk 0:02:25]}  Rc8 {[%clk 0:01:57]} 15. Bxg6 {[%clk 0:02:10]}  Bxh4 {[%clk 0:01:48]} 16. Rh1 {[%clk 0:01:43]}  Bg5 {[%clk 0:01:45]} 17. Nxg5 {[%clk 0:01:32]}  Qxg5 {[%clk 0:01:45]} 18. Qxh5 {[%clk 0:01:32]}  Qxh5 {[%clk 0:01:44]} 19. Rxh5 {[%clk 0:01:33]}  Ne7 {[%clk 0:01:44]} 20. Be4 {[%clk 0:01:30]}  Bxe4 {[%clk 0:01:22]} 21. Nxe4 {[%clk 0:01:29]}  cxd4 {[%clk 0:01:22]} 22. exd4 {[%clk 0:01:07]}  Rf4 {[%clk 0:01:20]} 23. Ng3 {[%clk 0:00:58]}  Rcf8 {[%clk 0:01:16]} 24. Rh2 {[%clk 0:00:58]}  Nd5 {[%clk 0:01:11]} 25. Ke2 {[%clk 0:00:57]}  Nf6 {[%clk 0:01:11]} 26. Rah1 {[%clk 0:00:53]}  Kf7 {[%clk 0:01:11]} 27. f3 {[%clk 0:00:38]}  Nd5 {[%clk 0:01:06]} 28. Rh8 {[%clk 0:00:33]}  Ke7 {[%clk 0:01:01]} 29. Rxf8 {[%clk 0:00:32]}  Rxf8 {[%clk 0:01:01]} 30. Ne4 {[%clk 0:00:31]}  Nf4+ {[%clk 0:00:59]} 31. Kd2 {[%clk 0:00:30]}  Nd5 {[%clk 0:00:58]} 32. Ke2 {[%clk 0:00:29]}  Nf4+ {[%clk 0:00:58]} 33. Kd2 {[%clk 0:00:28]}  Kf7 {[%clk 0:00:58]} 34. Rg1 {[%clk 0:00:25]}  Rh8 {[%clk 0:00:56]} 35. c4 {[%clk 0:00:17]}  Rh2+ {[%clk 0:00:55]} 36. Ke3 {[%clk 0:00:17]}  Nh5 {[%clk 0:00:46]} 37. Nf2 {[%clk 0:00:15]}  Nf6 {[%clk 0:00:41]} 38. b3 {[%clk 0:00:14]}  Ne8 {[%clk 0:00:38]} 39. a3 {[%clk 0:00:11]}  Nd6 {[%clk 0:00:38]} 40. Ng4 {[%clk 0:00:10]}  Rb2 {[%clk 0:00:31]} 41. Ne5+ {[%clk 0:00:10]}  Ke8 {[%clk 0:00:31]} 42. Kd3 {[%clk 0:00:06]}  Nf5 {[%clk 0:00:27]} 43. Kc3 {[%clk 0:00:04]}  Re2 {[%clk 0:00:27]} 44. Rh1 {[%clk 0:00:02]}  Re3+ {[%clk 0:00:26]} 45. Kb2 {[%clk 0:00:03]}  Nxd4 {[%clk 0:00:23]} 46. Rh8+ {[%clk 0:00:02]}  Ke7 {[%clk 0:00:24]} 47. Ra8 {[%clk 0:00:03]}  Rxe5 {[%clk 0:00:22]} 48. Rxa7 {[%clk 0:00:04]}  Nxf3 {[%clk 0:00:21]} 49. b4 {[%clk 0:00:04]}  g5 {[%clk 0:00:21]} 50. a4 {[%clk 0:00:04]}  g4 {[%clk 0:00:21]} 51. a5 {[%clk 0:00:05]}  bxa5 {[%clk 0:00:22]} 52. b5 {[%clk 0:00:05]}  g3 {[%clk 0:00:21]} 53. b6 {[%clk 0:00:05]}  g2 {[%clk 0:00:21]} 54. b7 {[%clk 0:00:06]}  g1=Q {[%clk 0:00:22]} 55. b8=Q {[%clk 0:00:06]}  Qd4+ {[%clk 0:00:22]} 56. Ka3 {[%clk 0:00:06]}  Re3+ {[%clk 0:00:20]} 57. Ka4 {[%clk 0:00:05]}  Qxc4+ {[%clk 0:00:20]} 58. Kxa5 {[%clk 0:00:04]}  Ra3+ {[%clk 0:00:21]} 59. Kb6 {[%clk 0:00:04]}  Qc6# {[%clk 0:00:21]} 0-1


[Site "https://www.chess.com"]